Cogmind - Beta 13 @@@ ROGUE MODE // 2024.04.09 @ 20:18:45 Player: Biasface Result: Destroyed by H-61 Shepherd with Heavy Assault Cannon Performance ------------- Evolutions (2) 1000 Regions Visited (5) 1000 Robots Destroyed (75) 375 Value Destroyed (1811) 1811 Prototype IDs (31) 620 Alien Tech Used (0) 0 Bonus (370) 370 TOTAL SCORE: 5176 Bonus ------- Follower Combat Kills 70 Aligned with FarCom 300 Cogmind --------- Core Integrity 0/550 Matter 300/300 Energy 100/100 System Corruption 0% Temperature Cool (0) Movement Core (700) Ox13 Location -8/Materials Parts ------- > --- POWER (1) -------- (None) > --- PROPULSION (3) --- (None) > --- UTILITY (5) ------ High-capacity Storage Unit Visual Processing Unit 0b10 Alert Chip Targeting Computer Hacking Suite > --- WEAPON (2) ------- Flail > --- INVENTORY (20) --- Light Nuclear Core Light Nuclear Core VTOL Module VTOL Module VTOL Module Cesium-ion Thruster Improved VTOL Module Improved Heat Sink Improved Terrain Scanner ECM Suite Reaction Control System Improved Light Armor Plating Autogun Minigun Improved Light Cannon Mini Grenade Launcher Peak State ------------ > --- POWER ------------ Light Nuclear Core > --- PROPULSION ------- Light Treads Light Treads Advanced Treads > --- UTILITY ---------- High-capacity Storage Unit Visual Processing Unit 0b10 Alert Chip Targeting Computer Hacking Suite > --- WEAPON ----------- Ion Cannon Flail > --- INVENTORY -------- Light Nuclear Core Light Nuclear Core VTOL Module VTOL Module VTOL Module Cesium-ion Thruster Improved Heat Sink Improved Terrain Scanner ECM Suite Reaction Control System Light Armor Plating Light Armor Plating Autogun Minigun Improved Light Cannon Mini Grenade Launcher [Rating: 29] Favorites ----------- Power Light Ion Engine Engine Light Ion Engine Power Core Light Nuclear Core Propulsion Light Treads Treads Light Treads Leg Aluminum Leg Utility Targeting Computer Device Improved Terrain Scanner Storage High-capacity Storage Unit Processor Targeting Computer Hackware Hacking Suite Weapon Autogun Energy Gun Particle Gun Energy Cannon Ion Cannon Ballistic Gun Autogun Ballistic Cannon Light Cannon Launcher Mini Grenade Launcher Impact Weapon Flail Build | -11 -10 -10 -10 -9 -8 ------- Run | Yrd Mat Min Exi Min Mat Slots Evolved 4 | . . . . . 4 Power . | . . . . . . Propulsion 1 | . . . . . 1 Utility 3 | . . . . . 3 Weapon . | . . . . . . Parts Attached 54 | 7 16 3 . 2 26 Power 3 | 1 . 1 . . 1 Engine 2 | 1 . 1 . . . Core 1 | . . . . . 1 Reactor . | . . . . . . Propulsion 13 | 2 3 . . . 8 Treads 12 | 2 3 . . . 7 Leg 1 | . . . . . 1 Wheel . | . . . . . . Hover . | . . . . . . Flight . | . . . . . . Utility 8 | 1 2 2 . . 3 Device 1 | . . 1 . . . Storage 3 | 1 1 1 . . . Processor 3 | . 1 . . . 2 Hackware 1 | . . . . . 1 Protection . | . . . . . . Artifact . | . . . . . . Weapon 30 | 3 11 . . 2 14 Energy Gun 4 | 1 3 . . . . Energy Cannon 2 | . . . . . 2 Ballistic Gun 17 | 2 6 . . 2 7 Ballistic Cannon 4 | . 2 . . . 2 Launcher 2 | . . . . . 2 Special Weapon . | . . . . . . Impact Weapon 1 | . . . . . 1 Slashing Weapon . | . . . . . . Piercing Weapon . | . . . . . . Special Melee Weapon . | . . . . . . Unidentified Prototypes 1 | . . . . . 1 Parts Lost 11 | . . . . . 11 Power 2 | . . . . . 2 Propulsion 5 | . . . . . 5 Utility . | . . . . . . Weapon 4 | . . . . . 4 Highest Loss Streak 4 | . . . . . 4 To Critical Strikes . | . . . . . . Average Slot Usage (%) 91 | . 99 99 71 87 85 Engine 11 | . 14 14 14 14 2 Treads 26 | . 28 28 28 28 19 Storage 12 | . 14 13 14 14 9 Processor 16 | . 13 14 14 14 27 Hackware 1 | . . . . . 5 Ballistic Gun 18 | . 26 28 . 15 10 Naked Turns . | . . . . . . Heaviest Build 53 | 12 49 49 43 49 53 Greatest Support 62 | 40 40 40 40 40 62 Greatest Overweight (x) 15 | 1 1 1 1 1 15 Average Overweight (x) . | . . . 1 1 . Largest Inventory Capacity 20 | 8 20 20 20 20 20 Average Capacity 19 | 6 18 19 20 20 20 Most Carried 20 | 5 18 19 20 20 20 Average Carried 15 | 3 12 16 19 18 17 Final Capacity 20 | 8 20 20 20 20 20 Final Carried 20 | 4 16 19 20 18 16 Class Distribution -------------------- 77% | Mutant 7% | Scavenger-Skirmisher 7% | Assassin 4% | Skirmisher 3% | Scavenger-Assassin Dominant Class ---------------- Mutant | -10/Materials Mutant | -10/Mines Mutant | -10/Exiles Mutant | -9/Mines Scavenger-Skirmisher | -8/Materials Resources | -11 -10 -10 -10 -9 -8 ----------- Run | Yrd Mat Min Exi Min Mat Matter Collected 1933 | 224 606 117 . 114 872 Remotely . | . . . . . . Salvage Created 2272 | . 864 101 . . 1307 Parts 160 | . 61 18 . . 81 Haulers Intercepted 3 | . 2 . . . 1 Recyclers Shooed 2 | . 2 . . . . Parts Field Recycled . | . . . . . . Retrieved Matter . | . . . . . . Parts Self-Destructed . | . . . . . . Prevented . | . . . . . . Kills | -11 -10 -10 -10 -9 -8 ------- Run | Yrd Mat Min Exi Min Mat Combat Hostiles Destroyed 49 | . 16 . . . 33 Melee 2 | . . . . . 2 Guns 35 | . 15 . . . 20 Cannons 6 | . 1 . . . 5 AOE 5 | . . . . . 5 Classes Destroyed 10 | . 6 1 . . 3 Worker 3 | . . . . . 3 Builder 10 | . 4 2 . . 4 Tunneler 3 | . . 3 . . . Hauler 3 | . 2 . . . 1 Operator 3 | . 2 . . . 1 Watcher 4 | . 3 . . . 1 Swarmer 16 | . 3 . . . 13 Grunt 28 | . 13 . . . 15 Duelist 1 | . . . . . 1 Sentry 4 | . . . . . 4 Best Kill Streak 7 | . 4 2 . . 7 Combat Bots Only 6 | . 3 . . . 6 Max Kills in Single Turn 2 | . 2 1 . . 2 Gunslinging 1 | . 1 . . . . Exploded 2 | . . . . . 2 Melee 1 | . . . . . 1 Uniques/NPCs Destroyed . | . . . . . . Combat | -11 -10 -10 -10 -9 -8 -------- Run | Yrd Mat Min Exi Min Mat Hostile Shots Fired 243 | . 60 . . . 183 Missed 63 | . 12 . . . 51 Damage Taken 2615 | . 524 . . . 2091 Core 631 | . 72 . . . 559 Absorbed by Shields . | . . . . . . Core Remaining (%) 85 | 100 . . . 71 . Volleys Fired 209 | . 77 9 . . 123 Largest 2 | . 2 2 . . 2 Hottest 100 | . 100 46 . . 60 Shots Fired 366 | . 154 18 . . 194 Gun 313 | . 148 18 . . 147 Cannon 49 | . 6 . . . 43 Launcher 4 | . . . . . 4 Special . | . . . . . . Kinetic 319 | . 148 18 . . 153 Thermal 43 | . 6 . . . 37 Explosive 4 | . . . . . 4 Electromagnetic . | . . . . . . Robot Hit Streak 28 | . 13 5 . . 28 Robot Miss Streak 5 | . 5 3 . . 5 Penetration Max . | . . . . . . Secondary Targets 4 | . 3 . . . 1 Max Gunslinging Chain 1 | . 1 . . . 1 Shots Hit Robots 250 | . 95 11 . . 144 Core Hits 107 | . 44 5 . 1 57 Critical Kills 3 | . 1 . . . 2 Critical Parts Destroyed 3 | . 2 . . . 1 Critical Strikes 6 | . 3 . . . 3 Destroy 3 | . 3 . . . . Smash 3 | . . . . . 3 Melee Attacks 16 | . . . . . 16 Impact 16 | . . . . . 16 Slashing . | . . . . . . Piercing . | . . . . . . Sneak Attacks 7 | . . . . . 7 Combat Hostiles . | . . . . . . Follow-up Attacks . | . . . . . . Damage Inflicted 4814 | . 1237 170 . 20 3387 Guns 3059 | . 1132 170 . . 1757 Cannons 706 | . 100 . . . 606 Explosions 403 | . . . . . 403 Melee 609 | . . . . . 609 Ramming 37 | . 5 . . 20 12 Kinetic 3255 | . 1204 170 . . 1881 Thermal 510 | . 28 . . . 482 Explosive 403 | . . . . . 403 Electromagnetic . | . . . . . . Impact 609 | . . . . . 609 Slashing . | . . . . . . Piercing . | . . . . . . Highest Corruption 1 | . 1 1 1 1 . Average Corruption 1 | . 1 1 1 1 . Corruption Purged . | . . . . . . Corruption Blocked . | . . . . . . Effects 32 | . 10 6 5 11 . Message Errors 9 | . 4 . 2 3 . Matter Fused 11 | . . 3 2 6 . Heat Flow Errors 5 | . 1 3 . 1 . Energy Discharges 3 | . 1 . 1 1 . Parts Rejected 1 | . 1 . . . . Data Loss (minor) 2 | . 2 . . . . Data Loss (major) 1 | . 1 . . . . Overload Shots . | . . . . . . Overflow Damage 234 | . . . . . 234 Projectiles . | . . . . . . Explosions 8 | . . . . . 8 Melee 226 | . . . . . 226 Knockbacks 8 | . 2 . . . 6 Impact 2 | . . . . . 2 Kinetic 6 | . 2 . . . 4 Secondary . | . . . . . . Self-Inflicted Damage 97 | . . . . . 97 Shots 3 | . . . . . 3 Rammed 11 | . 1 1 . 8 1 Targets Rammed 11 | . 1 1 . 8 1 Kicked . | . . . . . . Crushed . | . . . . . . Highest Temperature 225 | . 205 225 . 81 119 Average Temperature 36 | . 34 63 . 43 28 Received Heat Transfer 1224 | . 261 . . . 963 Siege Activations . | . . . . . . Robots Corrupted . | . . . . . . Combat Hostiles . | . . . . . . Parts Fried 10 | . . . . . 10 Impact Corruptions 10 | . . . . . 10 Robots Melted . | . . . . . . Combat Hostiles . | . . . . . . Parts Melted 1 | . . . . . 1 Heat Transferred 851 | . 74 . . . 777 Parts Sabotaged . | . . . . . . Parts Stolen . | . . . . . . Parts Stripped . | . . . . . . Power Chain Reactions . | . . . . . . Alert | -11 -10 -10 -10 -9 -8 ------- Run | Yrd Mat Min Exi Min Mat Peak Influence 369 | . 179 35 . 73 369 Initial 25 | . . 25 . . . Average 81 | . 86 13 . 5 190 Maximum Alert Level 1 | . . . . . 1 Low Security (%) 86 | 100 100 100 . 100 48 Level 1 13 | . . . . . 51 Level 2 . | . . . . . . Level 3 . | . . . . . . Level 4 . | . . . . . . Level 5 . | . . . . . . High Security . | . . . . . . Max Security . | . . . . . . Squads Dispatched 10 | . 3 . . . 7 Investigation 2 | . 1 . . . 1 Extermination . | . . . . . . Reinforcement 5 | . 2 . . . 3 Assault . | . . . . . . Garrison 3 | . . . . . 3 Intercept . | . . . . . . Searches Triggered . | . . . . . . Construction Impeded 2 | . . . . . 2 Haulers Reinforced . | . . . . . . Active Scanning Responses . | . . . . . . Cargo Convoy Interrupts . | . . . . . . Stealth | -11 -10 -10 -10 -9 -8 --------- Run | Yrd Mat Min Exi Min Mat Distress Signals 7 | . 3 . . . 4 Communications Jammed . | . . . . . . Distress Signals . | . . . . . . Times Spotted 79 | . 26 . . 3 50 Peak Tracking Total 7 | . 3 . . 3 7 Tactical Retreats 5 | . 1 . . . 4 Traps | -11 -10 -10 -10 -9 -8 ------- Run | Yrd Mat Min Exi Min Mat Traps Triggered 2 | . 1 . . . 1 Indirectly . | . . . . . . Trap Hack Attempts . | . . . . . . Triggered . | . . . . . . Disarmed . | . . . . . . Reprogrammed . | . . . . . . Reused . | . . . . . . Traps Extracted . | . . . . . . Installed . | . . . . . . Triggered 1 | . . . . 1 . Machines | -11 -10 -10 -10 -9 -8 ---------- Run | Yrd Mat Min Exi Min Mat Machines Disabled 5 | . 2 . . 1 2 Max in Single Turn 1 | . 1 . . . 1 Machines Repaired . | . . . . . . Machines Dismantled . | . . . . . . Machines Sabotaged . | . . . . . . Overloaded Fab Kills . | . . . . . . Hacking | -11 -10 -10 -10 -9 -8 --------- Run | Yrd Mat Min Exi Min Mat Machines Accessed 18 | . 10 . 2 . 6 Terminals 11 | . 7 . . . 4 Fabricators . | . . . . . . Repair Stations 1 | . 1 . . . . Recycling Units 2 | . 2 . . . . Scanalyzers 1 | . . . . . 1 Garrison Access 1 | . . . . . 1 Total Hacks 53 | . 22 . 10 . 21 Successful 34 | . 16 . 10 . 8 Failed 19 | . 6 . . . 13 Catastrophic 3 | . 2 . . . 1 Database Lockouts . | . . . . . . Manual 17 | . 8 . 2 . 7 Terminals 30 | . 16 . . . 14 Fabricators . | . . . . . . Repair Stations 3 | . 3 . . . . Recycling Units 3 | . 3 . . . . Scanalyzers 3 | . . . . . 3 Garrison Access 4 | . . . . . 4 Terminal Hacks 29 | . 13 . 10 . 6 Record 10 | . 1 . 9 . . Robot Analysis 3 | . 2 . . . 1 Prototype ID Bank 5 | . 3 . . . 2 Branch Access Points 1 | . 1 . . . . Terminal Index 1 | . 1 . . . . Alert Level 1 | . 1 . . . . Locate Traps 3 | . 2 . . . 1 Dispatch Records 1 | . 1 . . . . Hauler Manifests 3 | . 1 . . . 2 Derelict Proto ID Bank 1 | . . . 1 . . Fabricator Hacks . | . . . . . . Repair Station Hacks 1 | . 1 . . . . Scan Component 1 | . 1 . . . . Recycling Unit Hacks 2 | . 2 . . . . Retrieve Components 2 | . 2 . . . . Scanalyzer 2 | . . . . . 2 Insert Component 1 | . . . . . 1 Analyze 1 | . . . . . 1 Garrison Access Hacks . | . . . . . . Unauthorized Hacks . | . . . . . . Terminals . | . . . . . . Fabricators . | . . . . . . Repair Stations . | . . . . . . Recycling Units . | . . . . . . Scanalyzers . | . . . . . . Garrison Access . | . . . . . . Data Cores Recovered . | . . . . . . Used . | . . . . . . Hacking Detections 11 | . 6 . . . 5 Full Trace Events 4 | . 2 . . . 2 Feedback Events 1 | . 1 . . . . Corruption 1 | . 1 . . . . Feedback Blocked . | . . . . . . Robot Schematics Acquired . | . . . . . . Robots Built . | . . . . . . Authchips . | . . . . . . Time . | . . . . . . Total Robot Build Rating . | . . . . . . Part Schematics Acquired 1 | . . . . . 1 Parts Built . | . . . . . . Authchips . | . . . . . . Time . | . . . . . . Total Part Build Rating . | . . . . . . Parts Repaired . | . . . . . . Time . | . . . . . . Parts Recycled . | . . . . . . Recycled Matter . | . . . . . . Retrieved Matter . | . . . . . . Retrieved Components 11 | . 11 . . . . Parts Scanalyzed 1 | . . . . . 1 Part Schematics Acquired 1 | . . . . . 1 Parts Damaged . | . . . . . . Bothacking | -11 -10 -10 -10 -9 -8 ------------ Run | Yrd Mat Min Exi Min Mat Used RIF Installer . | . . . . . . Robots Hacked . | . . . . . . Non-combat . | . . . . . . Combat . | . . . . . . Robot Hacks Applied . | . . . . . . Relay Couplers Released . | . . . . . . Fabnet Peak Effective % . | . . . . . . Robots Rewired . | . . . . . . Allies Hacked . | . . . . . . Hacks Repelled . | . . . . . . Allies | -11 -10 -10 -10 -9 -8 -------- Run | Yrd Mat Min Exi Min Mat Total Allies 3 | . . 3 . . . Largest Group 3 | . . 3 3 3 2 Highest-Rated Group 40 | . . 40 40 40 24 Highest-Rated Ally 16 | . . 16 16 16 16 Total Orders . | . . . . . . Ally Attacks 23 | . . . . 12 11 Total Damage 194 | . . . . 89 105 Kills 6 | . . . . 3 3 Allies Corrupted . | . . . . . . Allies Melted . | . . . . . . Intel | -11 -10 -10 -10 -9 -8 ------- Run | Yrd Mat Min Exi Min Mat Robot Analysis Total 3 | . 2 . . . 1 Derelict Logs Recovered 1 | . . 1 . . . Drone Launches . | . . . . . . Drone Recoveries . | . . . . . . Exploration | -11 -10 -10 -10 -9 -8 ------------- Run | Yrd Mat Min Exi Min Mat Turns Passed 7553 | 128 2407 1040 673 1561 1744 Spaces Moved 2908 | 74 917 414 281 636 586 Core 13 | 8 . . . . 5 Treads 2808 | 66 917 414 281 636 494 Legs 87 | . . . . . 87 Wheels . | . . . . . . Hover . | . . . . . . Flight . | . . . . . . Fastest Speed 50 | 50 160 160 240 240 155 Average Speed 226 | 151 229 239 240 240 201 Slowest Speed 800 | 160 240 240 240 240 800 Overloaded Moves . | . . . . . . Propulsion Burnouts . | . . . . . . Robots Hopped . | . . . . . . Cave-ins Triggered . | . . . . . . Exploration Rate (%) 64 | 6 98 75 63 100 47 Regions Visited 5 Branch Regions 3 Pre-discovered Areas . | . . . . . . Known Exits Taken 1 | . 1 . . . . Unknown Exits Taken 4 | 1 . 1 1 1 . Scrap Searched 3 | . . 1 . 2 . Spaces Dug . | . . . . . . Terrain Destroyed 45 | . . . . . 45 Melee . | . . . . . . Projectile 7 | . . . . . 7 AOE 38 | . . . . . 38 Terrain Rammed . | . . . . . . Walls Destroyed . | . . . . . . Machines Disabled . | . . . . . . Actions | -11 -10 -10 -10 -9 -8 --------- Run | Yrd Mat Min Exi Min Mat Total 3520 | 90 1080 448 281 662 959 Wait 244 | . 42 4 . 11 187 Move 2903 | 73 916 413 280 635 586 Hop . | . . . . . . Pick Up 57 | 8 19 14 1 3 12 Fast Attach 11 | 4 1 1 . . 5 Attach 16 | 2 1 . . 2 11 Detach 2 | . . 2 . . . Swap 27 | 1 14 2 . . 10 Drop 24 | 2 9 2 . 3 8 Fire 209 | . 77 9 . . 123 Melee 16 | . . . . . 16 Ram . | . . . . . . Kick . | . . . . . . Crush 11 | . 1 1 . 8 1 Escape Stasis . | . . . . . . Rewire . | . . . . . . Trap . | . . . . . . Miscellaneous . | . . . . . . Route ------- -11/Scrapyard -10/Materials (discovered 6 exits: [*Mat x3] / *Min x2 / [*Sub]) -10/Mines (discovered 3 exits: [*Mat x2] / *Exi) -10/Exiles (discovered 2 exits: [*Min x2]) -9/Mines (discovered 2 exits: *Mat x2) -8/Materials (discovered 2 exits: [*Fac] / *Sto) History --------- Turn | Location | Event 15 | -11/Scrapyard | Discovered new exit (range 16) 129 | -11/Scrapyard | Entered Materials 308 | -10/Materials | Build established: Mutant 646 | -10/Materials | Discovered new exit (range 15) 1399 | -10/Materials | Identified exit to Mines 1402 | -10/Materials | Discovered new exit (range 13) 1835 | -10/Materials | Discovered new exit (range 15) 2188 | -10/Materials | Discovered new exit (range 8) 2498 | -10/Materials | Discovered new exit (range 9) 2536 | -10/Materials | Entered Mines 2778 | -10/Mines | Learned location of 1 exit from Materials 2829 | -10/Mines | Found a hidden stash of uninstalled traps 3103 | -10/Mines | Discovered new exit (range 8) 3117 | -10/Mines | Assisted by bots powering up and referring to "LRC-V3" 3467 | -10/Mines | Discovered new exit (range 12) 3561 | -10/Mines | Deemed a non-threat by the Exiles lab entrance 3563 | -10/Mines | Discovered new exit (range 5) 3576 | -10/Mines | Entered Exiles 3576 | -10/Exiles | Accompanied by 3 allies 3632 | -10/Exiles | Discovered new exit (range 14) 3668 | -10/Exiles | Met 8R-AWN 3706 | -10/Exiles | Met EX-HEX 3795 | -10/Exiles | Met EX-BIN 3836 | -10/Exiles | Aligned with FarCom system 3838 | -10/Exiles | Given EX-Vault access code 3908 | -10/Exiles | Opened EX-Vault 3951 | -10/Exiles | Found 0b10 Alert Chip 4005 | -10/Exiles | Warned to stay clear of 0b10 Research branches 4072 | -10/Exiles | Met EX-DEC 4197 | -10/Exiles | Discovered new exit (range 15) 4249 | -10/Exiles | Left Exiles lab with 0b10 Alert Chip 4249 | -10/Exiles | Entered Mines 4249 | -9/Mines | Accompanied by 3 allies 4336 | -9/Mines | Discovered new exit (range 6) 4451 | -9/Mines | Discovered new exit (range 9) 5810 | -9/Mines | Entered Materials 5810 | -8/Materials | Accompanied by 2 allies 5810 | -8/Materials | Evolved 4 slots: Propulsion x1, Utility x3 5811 | -8/Materials | Identified exit to Storage 5887 | -8/Materials | Garrison activated, responded to threat 6101 | -8/Materials | Build established: Scavenger-Skirmisher 6690 | -8/Materials | Build established: Skirmisher 6750 | -8/Materials | Core integrity fell below 50% 6766 | -8/Materials | Lost 4 parts (2n2w) 7170 | -8/Materials | Core integrity fell below 20% 7386 | -8/Materials | Build established: Assassin 7549 | -8/Materials | Discovered new exit (range 18) 7554 | -8/Materials | Destroyed by H-61 Shepherd with Heavy Assault Cannon Last Messages --------------- 07141_ G-47 Trooper destroyed. 07147_ Lgt. Nuclear Core destroyed. 07148_ R-06 Scavenger collects Aluminum Leg. 07153_ Y-45 Defender destroyed. 07165_ U-05 Engineer builds a Wall. 07179_ G-47 Trooper destroyed. 07205_ Acquired Aluminum Leg. 07205_ K-01 Serf collects debris. 07206_ Acquired 10 matter. 07209_ K-01 Serf collects debris. 07326_ Dropped Lgt. Armor Plating. 07339_ Acquired Imp. Light Armor Plating. 07360_ Acquired Imp. VTOL Module. 07513_ Connecting with Terminal... 07549_ EXIT=FOUND 07551_ Penetrated by Slug. 07551_ Ion Cannon destroyed. 07551_ Knocked back. 07554_ Aluminum Leg blasted off. Map ----- +----------------------------------------------------+ | | | | | | | | | | | | | | | | | | | | | ?????????????????????????????????????????????????? | | ??????????????????????????????????????????????#### | | ??????????????????????????????????????????????# | | ??????????????????????????????????????????????# | | ??????????????????????????##################### ! | | ??????????????????????????# + ! | | ??????????????????????????# ################# # | | ??????????????????????????# ## #??????# # | | ??????????????????????????# ## "T" #??????# #### | | ??????????????????###+##### ## #??????# #??? | | ??????????????????# ## #??????# #??? | | ?????????##+####### # #??????# #??? | | ??????? % + ########+##?? | | ???????H ^# """ #!! #?? | | ??????? [! k # """ #!* #?? | | ???????????######## [= @ # """ # #?? | | ??????????????????# k= + # """ #?? | | ??????????????????# % # # " " """ ##? | | ??????????????????# ######### "R" """ #? | | ??????????????????# ??????+ """ ##? | | ??????????????????##########+###?????# #?? | | ????????????????????????????????####?#+###+#####?? | | ???????????????????????????????#######%** ###### | | ????????????????#??????????????#!* ###!|! % *% [!% | | ???????????????? ?????????????#! = ! ###### | | ????????????????# ????????????#%=!###### ##???? | | ????????????????# ???????????##*#####?# #????? | | ????????????????# ???????????##*##????# *#????? | | ????????????????# ???????????## "###### %#????? | | ????????????????# ????????####!## T !# ! ????? | | ????????????????# ????????? # # # ???? | | ????????????????# ????????? ## ## # ??? | | ????????????????# ##+######## [ # ####+###?? | | ????????????????+ * !%=+ #??? ???? | | ????????????????# ###### # #???""???? | | ???????########## #???### ## =#???T" ??? | | ?????? #???# # # #???""???? | | ?????? #????## ##! #????????? | | ?????? #????## ###+###????????? | | ?????? #????## ### #??????????? | +----------------------------------------------------+ Best States ------------- Heat Dissipation 31 Energy Generation 14 Energy Capacity 160 Matter Stores 300 Matter Capacity 300 Sight Range 18 Terrain Scan Density 10 Evasion (%) 40 Targeting Accuracy 5 Recoil Reduction 3 Offensive Hacking 10 Item Schematics ----------------- Cesium-ion Thruster | -8/Materials | Scanalyzed Robot Schematics ------------------ None Fabricated ------------ Nothing Alien Tech Used ----------------- None Achievements -------------- Armchair Analyst Let's See Who's Tougher Oops Challenges ------------ None Game ------ Seed HybridFusionBox Manual? 0 Play Time 00:47:15 Cumulative 4.4 hours Start 2024.04.09 @ 18:59:42 End 2024.04.09 @ 20:18:45 Sessions 3 Manual Loads 0 Difficulty Rogue Special Mode None Game No. 5 Rogue 5 Adventurer 0 Explorer 0 Win Type - Total 0 Types 0/0/0/0/0/0/0/0/0 Lore% 14 Gallery% 10 Achievement% 10 Wizard Run 0 Options --------- Layout 1 ASCII 0 Keyboard 0 Movement Arrows Keybinds 0 Fullscreen 1 Font 24/Smallcaps Map View 50x35 Zoom Use 0% Tactical HUD 1 Map Filters NONE Filters NONE Steam 1 RUN: 98557d74-3a4b-4cf7-bc2c-b685b2c699d2